[Event "WYCC 2018 O14"]
[Site "Halkidiki"]
[Date "2018.10.27"]
[Round "8"]
[White "Fecker, Noah"]
[Black "Boulos, Carlos"]
[Result "1/2-1/2"]
[ECO "C63"]
[WhiteElo "2184"]
[BlackElo "2003"]
[Annotator "NA"]
[PlyCount "91"]
[EventDate "2018.10.20"]
[EventType "swiss"]
[EventCountry "GRE"]
[SourceTitle "playchess.com"]
[Source "ChessBase"]
[SourceQuality "1"]
[TimeControl "40/5400+30:1800+30"]

1. e4 {[%emt 0:00:00]} e5 {[%emt 0:00:00]} 2. Nf3 {[%emt 0:00:00]} Nc6 {[%emt 0:00:03]} 3. Bb5 {[%emt 0:00:00]} f5 {[%emt 0:00:21]} 4. d3 {[%emt 0:00:03]} fxe4 {[%emt 0:00:32]} 5. dxe4 {[%emt 0:00:06]} Nf6 {[%emt 0:00:25]} 6. O-O {[%emt 0:00:53]} d6 {[%emt 0:00:28]} 7. Nc3 {[%emt 0:01:58]} Be7 {[%emt 0:01:06]} 8. Qd3 {[%emt 0:05:53]} O-O {[%emt 0:04:41]} 9. Ng5 {[%emt 0:17:23]} Qe8 {[%emt 0:12:45]} 10. Qc4+ {[%emt 0:05:16]} Kh8 {[%emt 0:00:34]} 11. Ne6 {[%emt 0:02:42]} Bxe6 {[%emt 0:03:34]} 12. Qxe6 {[%emt 0:00:07]} Nd4 {[%emt 0:06:31]} 13. Bxe8 {[%emt 0:02:56]} Nxe6 {[%emt 0:00:08]} 14. Ba4 {[%emt 0:06:00]} Nc5 {[%emt 0:10:11]} 15. Bg5 {[%emt 0:04:55]} c6 {[%emt 0:03:27]} 16. Bb3 {[%emt 0:03:19]} a5 {[%emt 0:08:02]} 17. f3 {[%emt 0:03:11]} b5 {[%emt 0:05:33]} 18. a3 {[%emt 0:03:21]} Nxb3 {[%emt 0:05:27]} 19. cxb3 {[%emt 0:00:01]} Bd8 {[%emt 0:06:31]} 20. Be3 {[%emt 0:02:20]} Ra6 {[%emt 0:07:03]} 21. Rfd1 {[%emt 0:01:31]} Ne8 {[%emt 0:00:33]} 22. Kf2 {[%emt 0:03:59]} Bb6 {[%emt 0:02:07]} 23. Bxb6 {[%emt 0:01:08]} Rxb6 {[%emt 0:00:01]} 24. b4 {[%emt 0:01:00]} a4 {[%emt 0:00:28]} 25. Rac1 {[%emt 0:00:38]} Kg8 {[%emt 0:01:25]} 26. Rd2 {[%emt 0:03:32]} Kf7 {[%emt 0:01:43]} 27. Nd1 {[%emt 0:01:38]} Ke6 {[%emt 0:00:25]} 28. Ne3 {[%emt 0:00:22]} g6 {[%emt 0:00:25]} 29. Rcd1 {[%emt 0:01:00]} Rf7 {[%emt 0:00:50]} 30. h4 {[%emt 0:01:09]} Rbb7 {[%emt 0:02:32]} 31. Ke2 {[%emt 0:04:14]} Rfd7 {[%emt 0:03:42]} 32. Rc1 {[%emt 0:02:04]} Rdc7 {[%emt 0:00:30]} 33. Rdc2 {[%emt 0:00:44]} Kd7 {[%emt 0:00:28]} 34. h5 {[%emt 0:01:37]} Ng7 {[%emt 0:03:53]} 35. hxg6 {[%emt 0:00:59]} hxg6 {[%emt 0:00:01]} 36. Rh1 {[%emt 0:01:02]} Nh5 {[%emt 0:04:16]} 37. Kf2 {[%emt 0:01:04]} Ke6 {[%emt 0:01:37]} 38. Rhc1 {[%emt 0:00:52]} Kd7 {[%emt 0:00:22]} 39. g3 {[%emt 0:01:04]} Rb8 {[%emt 0:03:32]} 40. Rh1 {[%emt 0:00:00]} Ke6 {[%emt 0:00:00]} 41. Nd5 {[%emt 0:22:12]} Rcc8 {[%emt 0:03:04]} 42. Rhc1 {[%emt 0:00:24]} Kd7 {[%emt 0:00:40]} 43. Ne3 {[%emt 0:00:52]} Rc7 {[%emt 0:00:51]} 44. Ng2 {[%emt 0:04:20]} Rf8 {[%emt 0:04:23]} 45. Nh4 {[%emt 0:05:03]} Rf6 {[%emt 0:00:40]} 46. Ng2 {[%emt 0:02:15]} 1/2-1/2

[Event "WYCC 2018 O14"]
[Site "Halkidiki"]
[Date "2018.10.27"]
[Round "8"]
[White "Vitenberg, Noam Aviv"]
[Black "Gharibyan, Mamikon"]
[Result "0-1"]
[ECO "A46"]
[WhiteElo "2175"]
[BlackElo "2314"]
[Annotator "NA"]
[PlyCount "124"]
[EventDate "2018.10.20"]
[EventType "swiss"]
[EventCountry "GRE"]
[SourceTitle "playchess.com"]
[Source "ChessBase"]
[SourceQuality "1"]
[TimeControl "40/5400+30:1800+30"]

1. d4 {[%emt 0:00:00]} Nf6 {[%emt 0:00:00]} 2. Nf3 {[%emt 0:00:00]} e6 {[%emt 0:01:26]} 3. g3 {[%emt 0:00:06]} b5 {[%emt 0:02:25]} 4. Bg2 {[%emt 0:01:04]} Bb7 {[%emt 0:01:33]} 5. O-O {[%emt 0:00:21]} Be7 {[%emt 0:02:56]} 6. Qd3 {[%emt 0:04:16]} a6 {[%emt 0:02:26]} 7. a4 {[%emt 0:07:16]} b4 {[%emt 0:02:37]} 8. c4 {[%emt 0:02:05]} bxc3 {[%emt 0:03:01]} 9. Nxc3 {[%emt 0:02:27]} d5 {[%emt 0:03:40]} 10. Rd1 {[%emt 0:11:11]} Nc6 {[%emt 0:04:30]} 11. Na2 {[%emt 0:08:56]} O-O {[%emt 0:10:52]} 12. Bf4 {[%emt 0:02:07]} a5 {[%emt 0:16:10]} 13. Rac1 {[%emt 0:01:49]} Ra6 {[%emt 0:01:26]} 14. Qc2 {[%emt 0:09:05]} Rb6 {[%emt 0:05:51]} 15. Ne5 {[%emt 0:06:20]} Bd6 {[%emt 0:06:22]} 16. Qd2 {[%emt 0:04:20]} Qa8 {[%emt 0:03:23]} 17. Nc3 {[%emt 0:03:16]} Ba6 {[%emt 0:04:13]} 18. Nxc6 {[%emt 0:06:31]} Rxc6 {[%emt 0:00:19]} 19. Bxd6 {[%emt 0:12:17]} cxd6 {[%emt 0:01:04]} 20. f3 {[%emt 0:03:34]} Rb8 {[%emt 0:02:26]} 21. e4 {[%emt 0:00:19]} Rcb6 {[%emt 0:01:28]} 22. Rc2 {[%emt 0:00:28]} Bc4 {[%emt 0:01:03]} 23. Re1 {[%emt 0:03:06]} Bb3 {[%emt 0:00:41]} 24. Rcc1 {[%emt 0:00:05]} Rb4 {[%emt 0:00:21]} 25. Ra1 {[%emt 0:01:13]} dxe4 {[%emt 0:09:04]} 26. fxe4 {[%emt 0:00:21]} Qa7 {[%emt 0:00:20]} 27. Nb5 {[%emt 0:01:01]} Qb6 {[%emt 0:00:19]} 28. Kh1 {[%emt 0:05:14]} Bxa4 {[%emt 0:00:53]} 29. Nxd6 {[%emt 0:00:28]} Qxd6 {[%emt 0:03:02]} 30. e5 {[%emt 0:00:52]} Qxd4 {[%emt 0:00:54]} 31. Qxd4 {[%emt 0:00:27]} Rxd4 {[%emt 0:00:04]} 32. exf6 {[%emt 0:00:07]} gxf6 {[%emt 0:00:04]} 33. Re2 {[%emt 0:01:16]} Bb3 {[%emt 0:02:36]} 34. h3 {[%emt 0:00:42]} a4 {[%emt 0:02:08]} 35. g4 {[%emt 0:01:38]} Kg7 {[%emt 0:02:00]} 36. Rf2 {[%emt 0:00:25]} Rbd8 {[%emt 0:01:56]} 37. Raf1 {[%emt 0:00:44]} Rd1 {[%emt 0:00:14]} 38. Kh2 {[%emt 0:01:46]} Rxf1 {[%emt 0:02:07]} 39. Bxf1 {[%emt 0:00:04]} Rd4 {[%emt 0:01:55]} 40. Kg3 {[%emt 0:00:00]} Rb4 {[%emt 0:00:00]} 41. Bg2 {[%emt 0:03:24]} Ba2 {[%emt 0:02:24]} 42. Bc6 {[%emt 0:02:10]} Bb1 {[%emt 0:00:46]} 43. Rd2 {[%emt 0:06:58]} f5 {[%emt 0:03:08]} 44. Rf2 {[%emt 0:02:46]} Kf6 {[%emt 0:01:34]} 45. Rf1 {[%emt 0:02:37]} Rxb2 {[%emt 0:04:50]} 46. Bxa4 {[%emt 0:00:54]} Be4 {[%emt 0:00:24]} 47. Bd1 {[%emt 0:03:41]} Ke5 {[%emt 0:04:39]} 48. gxf5 {[%emt 0:03:14]} exf5 {[%emt 0:01:17]} 49. Bh5 {[%emt 0:02:37]} f4+ {[%emt 0:00:38]} 50. Kh4 {[%emt 0:00:17]} f5 {[%emt 0:00:14]} 51. Bd1 {[%emt 0:01:37]} Rh2 {[%emt 0:01:19]} 52. Bf3 {[%emt 0:01:22]} Bxf3 53. Rxf3 {[%emt 0:00:08]} Ke4 {[%emt 0:03:26]} 54. Ra3 {[%emt 0:00:35]} f3 {[%emt 0:01:03]} 55. Ra4+ {[%emt 0:01:03]} Ke3 {[%emt 0:00:05]} 56. Ra3+ {[%emt 0:00:10]} Kf2 {[%emt 0:00:16]} 57. Ra2+ {[%emt 0:00:13]} Kg1 {[%emt 0:00:11]} 58. Ra1+ {[%emt 0:04:11]} Kg2 {[%emt 0:00:06]} 59. Ra3 {[%emt 0:00:07]} Rxh3+ {[%emt 0:00:10]} 60. Kg5 {[%emt 0:00:05]} f2 {[%emt 0:00:05]} 61. Ra2 {[%emt 0:00:12]} Kg1 {[%emt 0:00:07]} 62. Rxf2 {[%emt 0:00:07]} Kxf2 {[%emt 0:00:06]} 0-1

[Event "WYCC 2018 O14"]
[Site "Halkidiki"]
[Date "2018.10.27"]
[Round "8"]
[White "Lopez Varela, Pablo"]
[Black "Nguyen, Huynh Minh Thien"]
[Result "1-0"]
[ECO "B10"]
[WhiteElo "2172"]
[BlackElo "1996"]
[Annotator "NA"]
[PlyCount "125"]
[EventDate "2018.10.20"]
[EventType "swiss"]
[EventCountry "GRE"]
[SourceTitle "playchess.com"]
[Source "ChessBase"]
[SourceQuality "1"]
[TimeControl "40/5400+30:1800+30"]

1. e4 {[%emt 0:00:00]} c6 {[%emt 0:00:12]} 2. Nf3 {[%emt 0:00:00]} d5 {[%emt 0:00:09]} 3. exd5 {[%emt 0:00:00]} cxd5 {[%emt 0:00:09]} 4. Ne5 {[%emt 0:00:01]} Nc6 {[%emt 0:02:31]} 5. d4 {[%emt 0:00:04]} Bf5 {[%emt 0:08:09]} 6. g4 {[%emt 0:00:46]} Be6 {[%emt 0:05:35]} 7. f4 {[%emt 0:13:04]} Nf6 {[%emt 0:06:05]} 8. f5 {[%emt 0:02:38]} Bd7 {[%emt 0:01:49]} 9. Bg2 {[%emt 0:06:24]} e6 {[%emt 0:03:41]} 10. O-O {[%emt 0:21:31]} Be7 {[%emt 0:11:27]} 11. g5 {[%emt 0:10:15]} Ne4 {[%emt 0:01:55]} 12. Nxf7 {[%emt 0:01:51]} Kxf7 {[%emt 0:17:02]} 13. fxe6+ {[%emt 0:00:12]} Ke8 {[%emt 0:00:29]} 14. exd7+ {[%emt 0:00:19]} Qxd7 {[%emt 0:00:02]} 15. c3 {[%emt 0:06:19]} Rf8 {[%emt 0:02:51]} 16. Bf4 {[%emt 0:11:56]} Bxg5 {[%emt 0:05:18]} 17. Bxg5 {[%emt 0:00:15]} Rxf1+ {[%emt 0:00:19]} 18. Bxf1 {[%emt 0:00:16]} Nxg5 {[%emt 0:00:05]} 19. Qh5+ {[%emt 0:00:06]} Nf7 {[%emt 0:00:10]} 20. Nd2 {[%emt 0:01:52]} Kf8 {[%emt 0:05:40]} 21. Bg2 {[%emt 0:00:44]} Rd8 {[%emt 0:01:05]} 22. Qxh7 {[%emt 0:00:28]} Qe7 {[%emt 0:00:46]} 23. Rf1 {[%emt 0:04:08]} Qg5 {[%emt 0:02:55]} 24. Kh1 {[%emt 0:02:19]} Ne7 {[%emt 0:03:35]} 25. Nf3 {[%emt 0:00:43]} Qh6 {[%emt 0:00:50]} 26. Qd3 {[%emt 0:00:57]} Kg8 {[%emt 0:00:12]} 27. Ne5 {[%emt 0:04:08]} Rf8 {[%emt 0:02:49]} 28. Qf3 {[%emt 0:02:12]} Qf6 {[%emt 0:03:50]} 29. Qxf6 {[%emt 0:00:36]} gxf6 {[%emt 0:00:02]} 30. Nd7 {[%emt 0:00:12]} Rd8 {[%emt 0:00:20]} 31. Nxf6+ {[%emt 0:00:03]} Kg7 {[%emt 0:00:14]} 32. Nh5+ {[%emt 0:00:18]} Kg8 {[%emt 0:00:11]} 33. Nf6+ {[%emt 0:00:50]} Kg7 {[%emt 0:00:08]} 34. Nh5+ {[%emt 0:00:06]} Kg8 {[%emt 0:00:06]} 35. Bh3 {[%emt 0:00:47]} Nd6 {[%emt 0:00:16]} 36. Be6+ {[%emt 0:00:37]} Kh8 {[%emt 0:00:01]} 37. Ng3 {[%emt 0:01:07]} Kg7 {[%emt 0:00:59]} 38. Kg2 {[%emt 0:01:31]} Rh8 {[%emt 0:00:04]} 39. h3 {[%emt 0:05:44]} Rh6 {[%emt 0:00:24]} 40. Bg4 {[%emt 0:00:00]} Ng6 {[%emt 0:00:00]} 41. Nf5+ {[%emt 0:04:51]} Nxf5 {[%emt 0:02:30]} 42. Bxf5 {[%emt 0:00:09]} Ne7 {[%emt 0:00:58]} 43. Bd3 {[%emt 0:02:13]} Re6 {[%emt 0:00:30]} 44. h4 {[%emt 0:05:26]} Ng8 {[%emt 0:00:42]} 45. Kg3 {[%emt 0:01:45]} Nf6 {[%emt 0:00:06]} 46. Kf4 {[%emt 0:03:09]} Ne4 {[%emt 0:08:40]} 47. Rg1+ {[%emt 0:00:59]} Kh6 {[%emt 0:00:04]} 48. Kf5 {[%emt 0:03:28]} Re8 {[%emt 0:00:23]} 49. Rg6+ {[%emt 0:02:38]} Kh5 {[%emt 0:01:05]} 50. Re6 {[%emt 0:00:13]} Rf8+ {[%emt 0:02:23]} 51. Ke5 {[%emt 0:00:14]} Nf2 {[%emt 0:00:02]} 52. Be2+ {[%emt 0:01:02]} Kxh4 {[%emt 0:00:31]} 53. Kxd5 {[%emt 0:00:11]} Rf7 {[%emt 0:00:43]} 54. Kd6 {[%emt 0:01:39]} Nh3 {[%emt 0:00:17]} 55. Bc4 {[%emt 0:00:25]} Rf2 {[%emt 0:00:10]} 56. Re2 {[%emt 0:01:10]} Rf6+ {[%emt 0:00:18]} 57. Ke7 {[%emt 0:01:07]} Rh6 {[%emt 0:00:40]} 58. d5 {[%emt 0:01:35]} Kg5 {[%emt 0:03:50]} 59. d6 {[%emt 0:00:42]} Rh7+ {[%emt 0:00:01]} 60. Bf7 {[%emt 0:00:29]} Nf4 {[%emt 0:00:32]} 61. Re5+ {[%emt 0:00:49]} Kg4 {[%emt 0:07:23]} 62. Re4 {[%emt 0:00:09]} Kf5 {[%emt 0:00:09]} 63. Rxf4+ {[%emt 0:00:17]} 1-0

[Event "WYCC 2018 O14"]
[Site "Halkidiki"]
[Date "2018.10.27"]
[Round "8"]
[White "Turgut, Aydin"]
[Black "Dardha, Daniel"]
[Result "0-1"]
[ECO "B29"]
[WhiteElo "2156"]
[BlackElo "2316"]
[Annotator "NA"]
[PlyCount "140"]
[EventDate "2018.10.20"]
[EventType "swiss"]
[EventCountry "GRE"]
[SourceTitle "playchess.com"]
[Source "ChessBase"]
[SourceQuality "1"]
[TimeControl "40/5400+30:1800+30"]

1. e4 {[%emt 0:00:00]} c5 {[%emt 0:00:00]} 2. Nf3 {[%emt 0:00:00]} Nf6 {[%emt 0:00:00]} 3. Nc3 {[%emt 0:02:59]} d5 {[%emt 0:00:01]} 4. exd5 {[%emt 0:06:35]} Nxd5 {[%emt 0:00:09]} 5. Bb5+ {[%emt 0:11:03]} Bd7 {[%emt 0:02:32]} 6. Bxd7+ {[%emt 0:06:40]} Qxd7 {[%emt 0:00:09]} 7. Nxd5 {[%emt 0:04:40]} Qxd5 {[%emt 0:00:08]} 8. d4 {[%emt 0:00:07]} e6 {[%emt 0:09:08]} 9. O-O {[%emt 0:06:30]} Nc6 {[%emt 0:03:34]} 10. dxc5 {[%emt 0:02:41]} Qxd1 {[%emt 0:00:21]} 11. Rxd1 {[%emt 0:00:04]} Bxc5 {[%emt 0:00:12]} 12. Bf4 {[%emt 0:00:48]} Ke7 {[%emt 0:04:43]} 13. c3 {[%emt 0:06:04]} Rhd8 {[%emt 0:09:11]} 14. b4 {[%emt 0:06:53]} Bd6 {[%emt 0:11:34]} 15. Bxd6+ {[%emt 0:09:35]} Rxd6 {[%emt 0:01:46]} 16. Rxd6 {[%emt 0:00:09]} Kxd6 {[%emt 0:00:07]} 17. Rd1+ {[%emt 0:00:04]} Ke7 {[%emt 0:00:19]} 18. Kf1 {[%emt 0:02:52]} Rc8 {[%emt 0:11:32]} 19. Ke2 {[%emt 0:03:57]} f6 {[%emt 0:01:12]} 20. a4 {[%emt 0:01:42]} e5 {[%emt 0:01:25]} 21. Nd2 {[%emt 0:02:07]} Nd8 {[%emt 0:05:16]} 22. Kd3 {[%emt 0:10:15]} Ne6 {[%emt 0:00:54]} 23. g3 {[%emt 0:00:02]} f5 {[%emt 0:00:52]} 24. f3 {[%emt 0:01:38]} Kf6 {[%emt 0:02:28]} 25. Re1 {[%emt 0:01:45]} Ng5 {[%emt 0:05:42]} 26. Re3 {[%emt 0:05:00]} h5 {[%emt 0:02:03]} 27. h4 {[%emt 0:01:14]} Ne6 {[%emt 0:00:24]} 28. Re1 {[%emt 0:03:16]} g5 {[%emt 0:02:19]} 29. hxg5+ {[%emt 0:02:35]} Nxg5 {[%emt 0:00:05]} 30. Rf1 {[%emt 0:01:29]} Kg6 {[%emt 0:07:37]} 31. a5 {[%emt 0:01:24]} a6 {[%emt 0:07:22]} 32. Rf2 {[%emt 0:00:30]} Ne6 {[%emt 0:01:41]} 33. Rf1 {[%emt 0:00:34]} f4 {[%emt 0:03:21]} 34. gxf4 {[%emt 0:00:55]} Nxf4+ {[%emt 0:00:23]} 35. Kc2 {[%emt 0:00:37]} Nd5 {[%emt 0:01:38]} 36. Rg1+ {[%emt 0:00:05]} Kh6 {[%emt 0:00:06]} 37. Ne4 {[%emt 0:00:27]} Nxb4+ {[%emt 0:00:06]} 38. Kd2 {[%emt 0:00:46]} Nc6 {[%emt 0:02:47]} 39. Ke2 {[%emt 0:00:55]} Nxa5 {[%emt 0:01:20]} 40. Nd6 {[%emt 0:00:00]} Rf8 {[%emt 0:00:00]} 41. Ke3 {[%emt 0:14:56]} Rf6 {[%emt 0:10:47]} 42. Rd1 {[%emt 0:00:40]} Rf4 {[%emt 0:09:01]} 43. Rb1 {[%emt 0:03:40]} b5 {[%emt 0:05:16]} 44. Ra1 {[%emt 0:01:44]} Ra4 {[%emt 0:00:35]} 45. Rd1 {[%emt 0:06:58]} Nc4+ {[%emt 0:04:23]} 46. Nxc4 {[%emt 0:00:10]} Rxc4 {[%emt 0:00:03]} 47. Rd6+ {[%emt 0:00:39]} Kg5 {[%emt 0:00:07]} 48. Rxa6 {[%emt 0:00:38]} Rxc3+ {[%emt 0:00:06]} 49. Ke4 {[%emt 0:00:14]} Rc4+ {[%emt 0:03:44]} 50. Kxe5 {[%emt 0:00:34]} Rf4 {[%emt 0:00:12]} 51. Ra1 {[%emt 0:04:36]} Rxf3 {[%emt 0:00:49]} 52. Rg1+ {[%emt 0:00:04]} Kh4 {[%emt 0:03:39]} 53. Rb1 {[%emt 0:00:34]} Kg4 {[%emt 0:00:38]} 54. Rg1+ {[%emt 0:00:11]} Rg3 {[%emt 0:00:11]} 55. Rb1 {[%emt 0:00:11]} Re3+ {[%emt 0:02:00]} 56. Kd4 {[%emt 0:00:07]} Re8 {[%emt 0:00:22]} 57. Rxb5 {[%emt 0:01:25]} h4 {[%emt 0:00:01]} 58. Rb7 {[%emt 0:00:37]} Rg8 {[%emt 0:00:51]} 59. Rb1 {[%emt 0:00:58]} Kf3 {[%emt 0:00:14]} 60. Rb3+ {[%emt 0:00:52]} Kf4 {[%emt 0:00:24]} 61. Rb1 {[%emt 0:01:05]} Rd8+ {[%emt 0:00:20]} 62. Kc4 {[%emt 0:00:27]} h3 {[%emt 0:00:18]} 63. Rb7 {[%emt 0:00:27]} Rh8 {[%emt 0:00:21]} 64. Rf7+ {[%emt 0:00:16]} Ke3 {[%emt 0:00:11]} 65. Re7+ {[%emt 0:00:27]} Kd2 {[%emt 0:00:05]} 66. Rd7+ {[%emt 0:00:20]} Kc2 {[%emt 0:00:08]} 67. Rf7 {[%emt 0:00:57]} h2 {[%emt 0:00:04]} 68. Rf2+ {[%emt 0:00:04]} Kd1 {[%emt 0:00:03]} 69. Rf1+ {[%emt 0:00:43]} Ke2 {[%emt 0:00:02]} 70. Rh1 {[%emt 0:00:11]} Kf2 {[%emt 0:00:03]} 0-1

[Event "WYCC 2018 O14"]
[Site "Halkidiki"]
[Date "2018.10.27"]
[Round "8"]
[White "Patrelakis, Evaggelos"]
[Black "Bolognese, Leonardo"]
[Result "1-0"]
[ECO "C03"]
[WhiteElo "2146"]
[BlackElo "1947"]
[Annotator "NA"]
[PlyCount "113"]
[EventDate "2018.10.20"]
[EventType "swiss"]
[EventCountry "GRE"]
[SourceTitle "playchess.com"]
[Source "ChessBase"]
[SourceQuality "1"]
[TimeControl "40/5400+30:1800+30"]

1. e4 {[%emt 0:00:00]} e6 {[%emt 0:00:00]} 2. d4 {[%emt 0:00:00]} d5 {[%emt 0:00:00]} 3. Nd2 {[%emt 0:00:00]} h6 {[%emt 0:00:36]} 4. Ngf3 {[%emt 0:00:01]} Nf6 {[%emt 0:00:18]} 5. e5 {[%emt 0:00:14]} Nfd7 {[%emt 0:00:21]} 6. c4 {[%emt 0:00:17]} c5 {[%emt 0:11:23]} 7. cxd5 {[%emt 0:00:10]} exd5 {[%emt 0:00:09]} 8. Bd3 {[%emt 0:00:59]} Qb6 {[%emt 0:11:33]} 9. O-O {[%emt 0:01:22]} Be7 {[%emt 0:00:56]} 10. Re1 {[%emt 0:03:20]} O-O {[%emt 0:01:52]} 11. Bb1 {[%emt 0:05:53]} Re8 {[%emt 0:05:34]} 12. a3 {[%emt 0:15:20]} cxd4 {[%emt 0:09:09]} 13. Nb3 {[%emt 0:04:31]} Nc5 {[%emt 0:07:57]} 14. Nbxd4 {[%emt 0:01:40]} Ne6 {[%emt 0:08:47]} 15. Nxe6 {[%emt 0:06:44]} Bxe6 {[%emt 0:01:40]} 16. Qc2 {[%emt 0:00:44]} g6 {[%emt 0:01:51]} 17. Bxh6 {[%emt 0:01:20]} Nc6 {[%emt 0:02:15]} 18. Qd2 {[%emt 0:07:31]} Na5 {[%emt 0:03:09]} 19. Be3 {[%emt 0:02:21]} Qd8 {[%emt 0:03:05]} 20. Nd4 {[%emt 0:03:43]} Nc4 {[%emt 0:02:22]} 21. Nxe6 {[%emt 0:01:08]} Qd7 {[%emt 0:00:22]} 22. Qe2 {[%emt 0:04:14]} Qxe6 {[%emt 0:00:48]} 23. Bd4 {[%emt 0:01:05]} b6 {[%emt 0:02:26]} 24. Bd3 {[%emt 0:02:09]} Rac8 {[%emt 0:00:20]} 25. Rad1 {[%emt 0:07:20]} Bc5 {[%emt 0:04:59]} 26. Bxc5 {[%emt 0:01:26]} Rxc5 {[%emt 0:01:12]} 27. f4 {[%emt 0:01:25]} b5 {[%emt 0:03:10]} 28. Qf2 {[%emt 0:00:51]} Qb6 {[%emt 0:01:24]} 29. Kh1 {[%emt 0:04:33]} Rc6 {[%emt 0:02:45]} 30. Qe2 {[%emt 0:00:39]} d4 {[%emt 0:02:29]} 31. Rc1 {[%emt 0:03:37]} Rec8 {[%emt 0:01:59]} 32. f5 {[%emt 0:03:11]} gxf5 {[%emt 0:04:23]} 33. Bxf5 {[%emt 0:01:24]} R8c7 {[%emt 0:01:18]} 34. Qg4+ {[%emt 0:08:05]} Kf8 {[%emt 0:01:10]} 35. Rcd1 {[%emt 0:00:40]} Ne3 {[%emt 0:02:51]} 36. Rxe3 {[%emt 0:00:26]} dxe3 {[%emt 0:00:07]} 37. Rd8+ {[%emt 0:00:22]} Ke7 {[%emt 0:00:07]} 38. Qg5+ {[%emt 0:08:48]} Rf6 {[%emt 0:00:09]} 39. Rd7+ {[%emt 0:01:25]} Rxd7 {[%emt 0:01:50]} 40. exf6+ {[%emt 0:00:00]} Qxf6 {[%emt 0:00:00]} 41. Qxe3+ {[%emt 0:00:51]} Kd8 {[%emt 0:05:38]} 42. Bxd7 {[%emt 0:01:06]} Kxd7 {[%emt 0:02:02]} 43. Qxa7+ {[%emt 0:00:28]} Ke8 {[%emt 0:00:08]} 44. Qb8+ {[%emt 0:01:18]} Ke7 {[%emt 0:00:07]} 45. Qxb5 {[%emt 0:00:31]} Qf2 {[%emt 0:00:21]} 46. Qe5+ {[%emt 0:00:20]} Kd7 {[%emt 0:00:57]} 47. h3 {[%emt 0:00:21]} f5 {[%emt 0:00:13]} 48. a4 {[%emt 0:00:55]} f4 {[%emt 0:01:23]} 49. b3 {[%emt 0:00:37]} Qf1+ {[%emt 0:00:53]} 50. Kh2 {[%emt 0:00:28]} Qf2 {[%emt 0:00:06]} 51. Qd5+ {[%emt 0:00:15]} Kc7 {[%emt 0:00:25]} 52. Qf3 {[%emt 0:00:15]} Qd4 {[%emt 0:00:10]} 53. a5 {[%emt 0:00:23]} Qd6 {[%emt 0:00:47]} 54. a6 {[%emt 0:02:26]} Kb6 {[%emt 0:00:31]} 55. Qb7+ {[%emt 0:00:10]} Ka5 {[%emt 0:00:08]} 56. b4+ {[%emt 0:00:29]} Ka4 {[%emt 0:00:18]} 57. Qf3 {[%emt 0:00:23]} 1-0

[Event "WYCC 2018 O14"]
[Site "Halkidiki"]
[Date "2018.10.27"]
[Round "8"]
[White "Galkin, Gleb"]
[Black "Chatzieleftheriou, Andreas"]
[Result "1/2-1/2"]
[ECO "E16"]
[WhiteElo "2134"]
[BlackElo "1984"]
[Annotator "NA"]
[PlyCount "95"]
[EventDate "2018.10.20"]
[EventType "swiss"]
[EventCountry "GRE"]
[SourceTitle "playchess.com"]
[Source "ChessBase"]
[SourceQuality "1"]
[TimeControl "40/5400+30:1800+30"]

1. d4 {[%emt 0:00:00]} Nf6 {[%emt 0:00:00]} 2. Nf3 {[%emt 0:00:00]} e6 {[%emt 0:00:00]} 3. c4 {[%emt 0:00:00]} Bb4+ {[%emt 0:00:00]} 4. Bd2 {[%emt 0:00:00]} Qe7 {[%emt 0:00:00]} 5. g3 {[%emt 0:10:32]} Nc6 {[%emt 0:00:16]} 6. Bg2 {[%emt 0:01:43]} Bxd2+ {[%emt 0:00:08]} 7. Nbxd2 {[%emt 0:01:44]} d6 {[%emt 0:01:48]} 8. O-O {[%emt 0:00:52]} O-O {[%emt 0:02:06]} 9. e4 {[%emt 0:00:42]} e5 {[%emt 0:00:18]} 10. d5 {[%emt 0:00:55]} Nb8 {[%emt 0:00:29]} 11. Ne1 {[%emt 0:01:05]} a5 {[%emt 0:00:40]} 12. Nd3 {[%emt 0:00:45]} Na6 {[%emt 0:01:57]} 13. f4 {[%emt 0:03:19]} Bg4 {[%emt 0:00:03]} 14. Qe1 {[%emt 0:05:07]} exf4 {[%emt 0:00:17]} 15. gxf4 {[%emt 0:00:37]} Nb4 {[%emt 0:01:02]} 16. Nxb4 axb4 {[%emt 0:00:02]} 17. Qg3 {[%emt 0:08:25]} Rfe8 {[%emt 0:16:47]} 18. Rae1 {[%emt 0:08:29]} Bd7 {[%emt 0:10:01]} 19. Qb3 {[%emt 0:07:44]} Nh5 {[%emt 0:06:56]} 20. e5 {[%emt 0:12:52]} Qh4 {[%emt 0:07:20]} 21. e6 {[%emt 0:16:36]} fxe6 {[%emt 0:11:45]} 22. dxe6 {[%emt 0:00:36]} Bxe6 {[%emt 0:00:18]} 23. Qxb4 {[%emt 0:08:23]} Nxf4 {[%emt 0:05:28]} 24. Qxb7 {[%emt 0:01:37]} Bh3 {[%emt 0:11:15]} 25. Rxe8+ {[%emt 0:03:48]} Rxe8 {[%emt 0:00:01]} 26. Qf3 {[%emt 0:03:12]} Rf8 {[%emt 0:06:46]} 27. Qd5+ {[%emt 0:01:33]} Kh8 {[%emt 0:07:04]} 28. Bxh3 {[%emt 0:02:18]} Nxh3+ {[%emt 0:00:30]} 29. Kh1 {[%emt 0:00:05]} Nf2+ {[%emt 0:07:44]} 30. Kg1 {[%emt 0:00:03]} h6 {[%emt 0:00:38]} 31. Qg2 {[%emt 0:01:00]} Nh3+ {[%emt 0:01:24]} 32. Kh1 {[%emt 0:00:04]} Rf2 {[%emt 0:01:05]} 33. Rxf2 {[%emt 0:01:48]} Nxf2+ {[%emt 0:00:16]} 34. Kg1 {[%emt 0:00:03]} Nd3 {[%emt 0:00:45]} 35. Nf3 {[%emt 0:00:56]} Qe4 {[%emt 0:01:01]} 36. b3 {[%emt 0:00:35]} Qe3+ {[%emt 0:00:23]} 37. Kh1 {[%emt 0:00:17]} Nf2+ {[%emt 0:00:41]} 38. Kg1 {[%emt 0:00:02]} Nh3+ {[%emt 0:00:25]} 39. Kf1 {[%emt 0:00:13]} Nf4 {[%emt 0:00:52]} 40. Qg3 {[%emt 0:00:00]} Qe2+ {[%emt 0:00:00]} 41. Kg1 {[%emt 0:04:39]} Qd1+ {[%emt 0:02:14]} 42. Kf2 {[%emt 0:00:37]} Nd3+ {[%emt 0:02:15]} 43. Ke3 {[%emt 0:02:22]} Nc1 {[%emt 0:07:15]} 44. Qe1 {[%emt 0:08:46]} Qd3+ {[%emt 0:04:04]} 45. Kf2 {[%emt 0:00:30]} Nxa2 {[%emt 0:01:34]} 46. Qe8+ {[%emt 0:00:18]} Kh7 {[%emt 0:00:18]} 47. Ng5+ {[%emt 0:00:06]} hxg5 {[%emt 0:00:35]} 48. Qh5+ {[%emt 0:00:05]} 1/2-1/2